bitfinex-derivatives/quotes_ETHF0:USTF0_20260314
["timestamp","ask_amount","ask_price","bid_price","bid_amount"]
[1773447249673,0.46589157,2092.9,2092.0,0.56727759]
[1773447254580,0.46589157,2092.9,2092.1,0.56727759]
[1773447258479,0.46589801,2092.8,2092.1,0.56727759]
[1773447260686,0.46601945,2092.7,2092.1,0.56727759]
[1773447261688,0.46609891,2092.9,2092.2,0.59108083]
[1773447264686,0.46609891,2092.9,2092.4,0.59108083]
[1773447264892,0.47175891,2093.0,2092.4,0.59108083]
[1773447277805,5.95604083,2093.3,2093.0,0.59108083]
[1773447278006,0.4559101,2093.6,2093.0,0.59108083]
[1773447278305,0.4559101,2093.6,2092.8,0.59108083]
[1773447278906,0.46198482,2093.6,2092.8,0.59564367]
[1773447280999,0.4689095,2093.4,2092.8,0.59564367]
[1773447285207,0.46529816,2093.6,2093.0,0.59108083]
[1773447291510,0.00607472,2093.6,2093.0,0.59108083]
[1773447292116,0.45303159,2093.6,2093.0,0.59108083]
[1773447295019,0.00607472,2093.6,2093.0,0.59108083]
[1773447295420,0.453573,2093.6,2093.0,0.59108083]
[1773447299924,0.00607472,2093.6,2093.0,0.59108083]
[1773447300116,0.42731146,2093.9,2093.2,0.59076239]
[1773447300423,0.42731146,2094.1,2093.4,0.59076239]
[1773447300611,0.23869,2094.4,2093.4,0.59076239]
[1773447300817,0.42537775,2094.3,2093.6,0.59076239]
[1773447301322,0.43003263,2094.3,2093.6,0.59076239]
[1773447301920,1.93236149,2094.5,2093.9,0.59076239]
[1773447302125,1.93236149,2094.5,2093.4,1.49878391]
[1773447302126,0.43357758,2094.4,2093.7,0.59076239]
[1773447302619,1.49878391,2094.5,2093.7,0.59076239]
[1773447302825,0.00369873,2094.5,2094.1,0.59076239]
[1773447303018,0.00369873,2094.5,2093.6,0.59076239]
[1773447303019,0.44608836,2094.2,2093.6,0.59076239]
[1773447303217,0.44608836,2094.4,2093.6,0.59076239]
[1773447303418,0.00369873,2094.5,2093.8,0.59076239]
[1773447303823,0.45004862,2094.5,2093.8,0.59076239]
[1773447305323,0.43442208,2094.3,2093.5,0.59076239]
[1773447307020,0.43877407,2094.5,2093.8,0.59076239]
[1773447309525,0.4329896,2094.4,2093.8,0.59076239]
[1773447311329,0.43280461,2094.2,2093.5,0.59076239]
[1773447315425,0.42766661,2094.0,2093.5,0.59076239]
[1773447316129,0.42766661,2094.0,2092.9,10.87]
[1773447316430,0.42766661,2094.0,2093.0,0.59076239]
[1773447318327,0.23873,2094.1,2093.0,0.59076239]
[1773447318833,0.63975749,2094.1,2093.0,0.59076239]
[1773447320435,0.40102749,2094.1,2093.0,0.59076239]
[1773447331046,0.37684653,2094.3,2093.3,0.55450232]
[1773447331447,0.37684653,2094.3,2093.5,0.55450232]
[1773447332850,0.38796829,2094.4,2093.5,0.55450232]
[1773447333349,0.39166702,2094.5,2093.5,0.55450232]
[1773447336751,0.39166702,2094.5,2093.6,0.55450232]
[1773447337351,0.00369873,2094.5,2093.6,0.55450232]
[1773447337842,0.38666956,2094.5,2093.6,0.55450232]
[1773447347254,0.00369873,2094.5,2093.8,0.5426153]
[1773447347455,0.36051991,2094.8,2093.9,0.5426153]
[1773447348656,0.36583146,2094.8,2093.9,0.5426153]
[1773447349353,0.36924484,2094.6,2093.6,0.5426153]
[1773447360863,0.36299179,2094.4,2093.6,0.5426153]
[1773447361254,0.36299179,2094.3,2093.6,0.5426153]
[1773447361456,0.36299179,2094.1,2093.2,0.58084744]
[1773447361766,0.36299179,2093.9,2093.1,0.58084744]
[1773447362064,0.36325602,2093.8,2092.9,0.58084744]
[1773447362254,0.36325602,2093.6,2092.8,0.00456284]
[1773447363065,0.36325602,2093.6,2092.8,0.58541028]
[1773447365163,0.36325602,2093.6,2092.8,0.00456284]
[1773447365463,0.23879,2093.5,2092.3,0.58084744]
[1773447365669,0.23879,2093.5,2091.6,12.52268993]
[1773447365670,0.35837198,2092.8,2092.0,0.58084744]
[1773447366367,0.36286328,2092.8,2092.0,0.00590569]
[1773447366570,0.36286328,2092.8,2091.8,0.58084744]
[1773447366768,0.36286328,2092.8,2091.2,0.58084744]
[1773447366969,0.23888,2092.7,2091.4,0.58084744]
[1773447367171,0.35397745,2092.6,2091.4,0.58084744]
[1773447367664,0.35397745,2092.6,2091.4,0.58537727]
[1773447367869,0.23891,2092.5,2091.4,0.58537727]
[1773447368171,0.35561503,2092.2,2091.4,0.58537727]
[1773447368672,0.3510852,2092.0,2091.0,0.58084744]
[1773447369462,0.3510852,2092.0,2091.0,0.58678984]
[1773447374175,0.59240995,2092.1,2091.0,0.58678984]
[1773447374973,0.35421828,2092.0,2091.0,0.58678984]
[1773447376372,0.35710787,2092.4,2091.0,0.58678984]
[1773447379678,0.35710787,2092.4,2091.2,0.58084744]
[1773447380780,0.40705403,2092.2,2091.2,0.58084744]
[1773447390475,0.23893,2092.3,2091.2,0.58084744]
[1773447390679,0.64666877,2092.3,2091.2,0.58084744]
[1773447391678,0.64666877,2092.3,2091.5,0.55716751]
[1773447393177,0.4070506,2092.2,2091.5,0.55716751]
[1773447397280,6.37903042,2092.2,2091.5,0.55716751]
[1773447397781,0.42791257,2092.1,2091.5,0.55716751]
[1773447399482,5.97227613,2092.2,2091.5,0.55716751]
[1773447399883,0.66642738,2092.3,2091.5,0.55716751]
[1773447400183,5.97284588,2092.2,2091.5,0.55716751]
[1773447400384,6.4002646,2092.2,2091.5,0.55716751]
[1773447400580,0.42741872,2092.4,2091.5,0.55716751]
[1773447400982,0.42834364,2092.6,2091.5,0.55716751]
[1773447403478,0.6769265,2092.8,2091.5,0.55716751]
[1773447404081,6.64257778,2092.8,2091.5,0.55716751]
[1773447404279,6.64257778,2092.8,2091.3,0.23904]
[1773447404280,0.42776502,2092.7,2091.7,0.55716751]
[1773447406687,0.43300363,2092.8,2092.0,0.58383085]
[1773447410090,0.43906101,2092.7,2091.5,0.58383085]
[1773447410886,0.43906101,2092.7,2091.7,0.58383085]
[1773447411087,0.0044913,2092.8,2091.9,0.55217388]
[1773447411286,0.0044913,2092.8,2092.0,0.55217388]
[1773447415693,0.0044913,2092.8,2091.9,10.035]
[1773447415694,0.45869914,2093.2,2092.3,0.55217388]
[1773447416695,0.46285979,2093.2,2092.3,0.55217388]
[1773447418095,0.00416065,2093.2,2092.5,0.55217388]
[1773447418297,0.00416065,2093.2,2092.5,0.55609733]
[1773447418697,0.46390166,2093.2,2092.5,0.55609733]
[1773447420897,0.00416065,2093.2,2092.5,0.55609733]
[1773447421901,0.46471825,2093.2,2092.5,0.55609733]
[1773447423996,0.00416065,2093.2,2092.5,0.55609733]
[1773447425102,0.46771781,2093.2,2092.5,0.55609733]
[1773447425795,0.00416065,2093.2,2092.5,0.55609733]
[1773447426902,0.23878,2093.7,2092.5,0.55609733]
[1773447426903,0.70931972,2093.7,2092.5,0.55609733]
[1773447427203,0.47053972,2093.6,2092.5,0.55609733]
[1773447427402,0.47053972,2093.6,2092.7,0.55217388]
[1773447427803,0.23878,2093.7,2092.7,0.55217388]
[1773447427804,0.70950535,2093.7,2092.7,0.55217388]
[1773447428104,0.714458,2093.7,2092.7,0.55217388]
[1773447429600,0.475678,2093.7,2092.7,0.55217388]
[1773447432902,0.475678,2093.7,2092.9,0.55217388]
[1773447433103,0.475678,2093.7,2093.1,0.55217388]
[1773447433505,0.00495265,2093.7,2093.1,0.55217388]
[1773447435505,0.47656756,2094.0,2093.1,0.55217388]
[1773447436607,0.48179676,2094.0,2093.1,0.55217388]
[1773447437810,0.47641685,2093.8,2093.1,0.55217388]
[1773447438104,0.47641685,2093.8,2093.1,11.63917388]
[1773447438507,0.47641685,2093.8,2093.1,0.55217388]
[1773447438700,0.47641685,2093.6,2092.9,0.55217388]
[1773447452119,0.47641685,2093.6,2092.7,11.68653538]
[1773447453817,0.47641685,2093.6,2092.8,0.59153538]
[1773447459527,0.23877,2093.7,2092.8,0.59153538]
[1773447459928,0.7430974,2093.7,2092.8,0.59153538]
[1773447462727,0.50550391,2093.6,2092.8,0.59153538]
[1773447463431,0.50550391,2093.4,2092.8,0.59153538]
[1773447465531,0.50498686,2093.2,2092.7,11.095]
[1773447465729,0.50498686,2093.2,2092.7,0.56816986]
[1773447465929,0.50498686,2093.2,2092.6,0.56816986]
[1773447467434,0.49030237,2093.0,2092.5,1.88228152]
[1773447468436,0.49030237,2093.0,2092.6,0.56816986]
[1773447468732,0.49549595,2092.8,2092.5,1.31411166]
[1773447468937,0.3846465,2092.8,2092.3,0.56816986]
[1773447469139,0.27379705,2092.8,2092.3,0.56816986]
[1773447469841,0.27379705,2092.8,2092.3,0.57197265]
[1773447470243,0.23886,2092.9,2092.3,0.57197265]
[1773447471149,0.51127459,2092.9,2092.3,0.57197265]
[1773447474650,0.27252612,2093.1,2092.3,0.57197265]
[1773447474852,0.27252612,2093.2,2092.3,0.57197265]
[1773447483356,0.51549924,2093.3,2092.3,0.57197265]
[1773447483754,0.27667924,2093.2,2092.3,0.57197265]
[1773447494370,0.55493289,2092.4,2091.7,0.58072778]
[1773447495269,0.55994374,2092.4,2091.7,0.5845318]
[1773447495871,0.55493289,2092.2,2091.7,0.5845318]
[1773447496067,2.05332511,2092.1,2091.5,0.58072778]
[1773447496270,0.55493289,2092.0,2091.5,0.58072778]
[1773447497174,0.55493289,2092.0,2091.5,0.58449686]
[1773447499576,0.79387289,2092.2,2091.5,0.58449686]
[1773447499981,0.55493289,2092.1,2091.5,0.58449686]
[1773447505078,0.56990423,2091.8,2091.5,0.00376908]
[1773447505282,0.56990423,2091.8,2091.2,0.57365881]
[1773447506184,0.56990423,2091.8,2091.2,0.57714395]
[1773447507279,0.56990423,2092.0,2091.2,0.57714395]
[1773447507677,0.56990423,2092.1,2091.2,0.57714395]
[1773447512881,0.56990423,2092.3,2091.4,0.57365881]
[1773447513086,0.56990423,2092.3,2091.6,0.57365881]
[1773447513579,0.57491508,2092.4,2091.6,0.57365881]
[1773447514788,0.56990423,2092.3,2091.6,0.57365881]
[1773447526195,0.5904782,2092.4,2091.8,0.54169873]
[1773447526490,0.00501085,2092.4,2091.8,0.54169873]
[1773447526895,0.58546735,2092.7,2092.0,0.54169873]
[1773447527891,0.59070465,2092.7,2092.0,0.54169873]
[1773447540399,0.0052373,2092.7,2092.2,0.56784894]
[1773447540604,0.54915762,2092.9,2092.2,0.56784894]
[1773447541604,0.55361033,2092.9,2092.2,0.56784894]
[1773447543709,0.00445271,2092.9,2092.2,0.56784894]
[1773447543907,0.00445271,2092.9,2092.4,0.56784894]
[1773447544607,0.55361033,2092.9,2092.3,0.56784894]
[1773447548704,0.00445271,2092.9,2092.3,2.06624116]
[1773447548908,0.54915762,2093.1,2092.4,0.56784894]
[1773447549907,0.55440084,2093.1,2092.4,0.56784894]
[1773447564615,0.00524322,2093.1,2092.4,0.56784894]
[1773447565019,0.58548411,2093.1,2092.4,0.56784894]
[1773447569220,0.81907089,2093.2,2092.4,0.56784894]
[1773447570022,0.58024089,2093.5,2092.4,0.56784894]
[1773447570223,0.58024089,2093.3,2092.4,0.56784894]
[1773447572224,6.56520163,2093.3,2092.4,0.56784894]
[1773447572420,0.58024089,2093.2,2092.4,0.56784894]
[1773447578036,0.58024089,2093.2,2092.4,0.8023652]
[1773447578236,0.58024089,2093.2,2092.5,0.57862539]
[1773447579437,0.58024089,2093.3,2092.5,0.57862539]
[1773447589538,5.98834612,2093.4,2092.5,0.57862539]
[1773447589843,0.58128986,2093.5,2092.5,0.57862539]
[1773447590238,0.57552084,2093.4,2092.5,0.57862539]
[1773447598453,0.56721024,2093.6,2092.9,0.54734457]
[1773447598653,0.56721024,2093.6,2093.1,0.54734457]
[1773447599548,0.5729461,2093.6,2093.1,0.55104136]
[1773447600955,0.5729461,2093.6,2093.1,0.00369679]
[1773447601755,0.5729461,2093.6,2093.1,0.55104136]
[1773447602953,0.56721024,2093.5,2092.8,0.54734457]
[1773447603157,0.56721024,2093.5,2092.4,0.54734457]
[1773447603557,0.24452586,2093.6,2092.4,0.54734457]
[1773447603558,0.56721024,2093.3,2092.4,0.54734457]
[1773447604050,0.56721024,2093.3,2092.4,0.55224467]
[1773447615573,0.56721024,2093.2,2092.4,0.55224467]
[1773447618875,0.56721024,2093.2,2092.5,0.54734457]
[1773447619869,0.00573586,2093.6,2092.9,0.54734457]
[1773447619870,0.5729461,2093.6,2092.9,0.54734457]
[1773447620071,0.00573586,2093.6,2092.9,0.54734457]
[1773447620267,0.00573586,2093.6,2093.1,0.54734457]
[1773447621372,0.59426711,2093.6,2093.1,0.54734457]
[1773447622274,0.00573586,2093.6,2093.1,0.54734457]
[1773447625880,0.59426711,2093.6,2093.1,0.54734457]
[1773447626480,0.00573586,2093.6,2093.1,0.54734457]
[1773447627176,0.58853125,2093.8,2093.1,0.54734457]
[1773447627177,0.58853125,2094.2,2093.3,0.59175824]
[1773447627482,0.58853125,2094.2,2093.5,0.59175824]
[1773447628083,0.59440323,2094.2,2093.7,0.59175824]
[1773447637492,0.59440323,2094.2,2093.6,12.26275824]
[1773447637689,0.59440323,2094.2,2093.5,11.722]
[1773447637998,0.59440323,2094.2,2093.3,11.722]
[1773447638200,0.59440323,2094.2,2093.3,0.59175824]
[1773447638395,0.59440323,2094.2,2092.9,12.29575824]
[1773447638396,0.58853125,2093.6,2092.9,12.29575824]
[1773447638593,0.58853125,2093.6,2093.0,0.59175824]
[1773447639192,0.58853125,2094.0,2093.3,0.59175824]
[1773447641700,0.58853125,2094.0,2093.5,0.59175824]
[1773447642801,0.59440323,2094.2,2093.5,0.59175824]
[1773447644302,0.59440323,2094.2,2093.4,12.30675824]
[1773447644599,0.58853125,2094.0,2093.4,12.30675824]
[1773447650407,0.57294511,2093.9,2093.2,0.54919458]
[1773447653307,0.57294511,2093.9,2093.1,0.5678013]
[1773447653601,0.591641,2093.7,2093.1,0.5678013]
[1773447654606,0.591641,2093.7,2093.0,11.756]
[1773447654910,0.591641,2093.7,2093.0,12.3238013]
[1773447655405,0.591641,2093.7,2092.8,0.5678013]
[1773447656910,0.591641,2093.6,2092.8,0.5678013]
[1773447658313,0.591641,2093.4,2092.8,0.5678013]
[1773447661310,0.591641,2093.6,2092.8,0.5678013]
[1773447670220,5.94156926,2093.8,2093.0,0.5678013]
[1773447670422,0.591641,2093.7,2093.0,0.5678013]
[1773447684129,5.95522085,2093.8,2093.0,0.5678013]
[1773447684331,0.53568947,2093.8,2093.0,0.5678013]
[1773447685131,0.53568947,2094.0,2093.0,0.5678013]
[1773447685332,0.00587198,2094.2,2093.0,0.5678013]
[1773447685333,0.54156145,2094.2,2093.0,0.5678013]
[1773447685535,0.53568947,2094.1,2093.0,0.5678013]
[1773447689540,0.53568947,2094.1,2093.2,0.58650991]
[1773447690935,0.54156145,2094.2,2093.2,0.58650991]
[1773447695141,0.54156145,2094.2,2093.3,0.58650991]
[1773447709359,0.54156145,2094.2,2093.4,0.5402532]
[1773447711858,0.00587198,2094.2,2093.4,0.5402532]
[1773447713155,0.55299974,2094.2,2093.4,0.5402532]
[1773447716864,0.55299974,2094.2,2093.5,0.56541439]
[1773447717461,5.95070703,2094.5,2093.5,0.56541439]
[1773447717766,0.54712776,2094.6,2093.7,0.56541439]
[1773447718565,0.55248336,2094.6,2093.7,0.56541439]
[1773447718965,0.54712776,2094.5,2093.7,0.56541439]
[1773447722666,0.0053556,2094.6,2093.7,0.56541439]
[1773447722964,0.55248336,2094.6,2093.7,0.56541439]
[1773447727764,0.0053556,2094.6,2093.7,0.56541439]
[1773447727970,0.0053556,2094.6,2093.9,0.56541439]
[1773447728271,0.0053556,2094.6,2093.9,0.5716209]
[1773447728472,0.55248336,2094.6,2093.9,0.5716209]
[1773447737682,0.0053556,2094.6,2094.1,0.56541439]
[1773447738782,0.54712776,2095.1,2094.5,0.56541439]
[1773447739879,0.55316936,2095.1,2094.5,0.56541439]
[1773447755578,0.54966492,2095.0,2094.3,0.5709758]
[1773447756486,0.0060416,2095.1,2094.7,0.5709758]
[1773447756686,0.55570652,2095.1,2094.7,0.5709758]
[1773447760293,0.0060416,2095.1,2094.7,0.5709758]
[1773447760682,0.55570652,2095.1,2094.7,0.5709758]
[1773447762191,0.0060416,2095.1,2094.7,0.5709758]
[1773447763194,0.55570652,2095.1,2094.3,0.5709758]
[1773447765193,0.54966492,2095.0,2094.3,0.5709758]
[1773447767794,2.06794668,2094.9,2094.1,0.5738926]
[1773447768101,0.57204857,2094.8,2094.1,0.5738926]
[1773447768397,0.57204857,2094.8,2093.6,21.99393195]
[1773447768398,0.57204857,2094.4,2093.6,0.5738926]
[1773447768791,0.57204857,2094.2,2093.4,0.5738926]
[1773447768993,0.57204857,2094.1,2093.4,0.5738926]
[1773447769493,0.57204857,2094.1,2093.4,0.57788747]
[1773447771598,0.56626011,2094.0,2093.4,0.57788747]
[1773447778706,0.56626011,2094.2,2093.4,0.57788747]
[1773447798519,0.56626011,2094.1,2093.4,0.57788747]
[1773447804621,6.51570301,2094.3,2093.4,0.57788747]
[1773447804926,0.55165564,2094.2,2093.4,0.57788747]
[1773447805722,0.55165564,2094.1,2093.4,0.57788747]
[1773447818735,6.5147889,2094.2,2093.4,0.57788747]
[1773447818940,0.55165564,2094.2,2093.4,0.57788747]
[1773447821938,0.55165564,2094.1,2093.4,0.57788747]
[1773447824738,0.79038564,2094.1,2093.4,0.57788747]
[1773447824943,0.55165564,2093.9,2093.2,0.56369208]
[1773447826047,0.55165564,2093.9,2093.2,0.56718137]
[1773447848873,0.55165564,2093.9,2092.9,13.50377439]
[1773447848874,0.57332127,2093.7,2092.8,0.5596998]
[1773447849268,6.19297261,2093.8,2092.8,0.5596998]
[1773447849269,0.57332127,2093.4,2092.8,0.5596998]
[1773447849475,0.57332127,2093.4,2092.7,0.5596998]
[1773447849972,0.57899346,2093.4,2092.7,0.56437364]
[1773447856372,0.00567219,2093.4,2092.7,0.56437364]
[1773447857179,0.00567219,2093.4,2092.7,12.54837364]
[1773447857381,0.00567219,2093.4,2092.8,0.5596998]
[1773447857680,0.57332127,2093.8,2092.8,0.5596998]
[1773447858679,0.57760043,2093.8,2092.8,0.5596998]
[1773447859684,0.57760043,2093.8,2093.2,0.5596998]
[1773447861874,0.56152232,2093.7,2092.7,11.98867384]
[1773447862183,0.56152232,2093.7,2092.8,0.59119392]
[1773447862382,1.50153466,2093.8,2092.7,0.59586776]
[1773447862383,0.56152232,2093.5,2092.7,0.59586776]
[1773447867885,6.81952232,2093.6,2092.9,0.59119392]
[1773447868586,0.56152232,2093.5,2092.9,0.59119392]
[1773447870890,0.56152232,2093.7,2092.9,0.59119392]
[1773447871080,0.56152232,2093.6,2092.9,0.59119392]
[1773447880400,0.56152232,2093.7,2093.1,0.59119392]
[1773447882101,6.5395352,2093.8,2093.1,0.59119392]
[1773447882399,0.56152232,2093.7,2093.1,0.59119392]
[1773447882601,5.97801288,2093.8,2093.1,0.59119392]
[1773447882898,0.00427916,2093.8,2093.3,0.59119392]
[1773447885897,0.5572171,2093.8,2093.3,0.59119392]
[1773447886797,0.00427916,2093.8,2093.3,0.59119392]
[1773447890103,6.76281339,2094.2,2093.3,0.59119392]
[1773447890301,0.23875,2093.9,2093.1,0.54148352]
[1773447890504,2.28894344,2093.9,2093.1,0.54148352]
[1773447890704,0.79168794,2093.9,2093.1,0.54148352]
[1773447890905,0.55293794,2093.8,2093.1,0.54148352]
[1773447891204,0.55775528,2093.8,2093.1,0.54148352]
[1773447892601,0.55775528,2093.8,2093.2,0.58280967]
[1773447894808,0.55775528,2093.8,2092.8,0.58280967]
[1773447894809,0.54248019,2093.3,2092.8,0.58280967]
[1773447895007,12.46546781,2093.7,2092.7,0.00467384]
[1773447895008,0.54248019,2093.1,2092.7,0.00467384]
[1773447895202,0.54248019,2093.1,2092.4,0.58280967]
[1773447895605,0.54248019,2093.3,2092.4,0.58280967]
[1773447896102,0.54248019,2093.3,2092.4,0.58656938]
[1773447896500,0.54248019,2093.2,2092.4,0.58656938]
[1773447898507,0.54248019,2093.2,2092.4,0.82982983]
[1773447898713,0.54248019,2093.2,2092.5,0.58280967]
[1773447899913,0.54248019,2093.1,2092.5,0.58280967]
[1773447905119,0.54248019,2093.3,2092.5,0.58280967]
[1773447906221,0.54248019,2092.7,2092.2,0.58280967]
[1773447906421,0.54248019,2092.5,2091.7,0.50998946]
[1773447906922,0.54248019,2092.5,2091.4,1.29778522]
[1773447906923,0.54248019,2092.1,2091.5,0.50998946]
[1773447907426,0.54248019,2092.1,2091.5,0.51545908]
[1773447907621,0.54595741,2092.1,2091.5,0.51545908]
[1773447908920,0.54595741,2092.1,2091.6,0.49394947]
[1773447911425,0.54595741,2092.1,2091.5,0.23891506]
[1773447911626,0.54595741,2092.1,2091.5,0.74124625]
[1773447912131,0.54248019,2091.9,2091.5,0.00546962]
[1773447912333,0.54248019,2091.9,2091.3,0.50242346]
[1773447913234,0.54248019,2091.9,2091.3,0.50803147]
[1773447913436,0.54248019,2091.9,2091.3,0.74852751]
[1773447915029,0.54248019,2091.5,2091.0,0.50312602]
[1773447916135,0.54248019,2091.5,2091.0,0.50932687]
[1773447917431,0.54248019,2091.7,2091.0,0.50932687]
[1773447917835,0.54248019,2091.7,2091.1,0.50904189]
[1773447921236,0.58078526,2091.5,2091.1,0.50904189]
[1773447921434,0.58078526,2091.5,2091.0,0.00620085]
[1773447925138,0.58078526,2091.5,2091.0,0.48046515]
[1773447928846,0.58078526,2091.5,2091.0,0.00620085]
[1773447929147,0.58078526,2091.5,2090.6,0.47318664]
[1773447929343,0.58078526,2091.3,2090.6,0.47318664]
[1773447930147,0.58078526,2091.3,2090.6,0.478671]
[1773447933552,0.58078526,2091.1,2090.6,0.00548436]
[1773447934045,0.58078526,2090.9,2090.1,1.78012171]
[1773447934251,0.58078526,2090.9,2090.2,0.47569758]
[1773447935044,0.58078526,2090.9,2090.2,0.4800431]
[1773447936552,0.58078526,2090.9,2090.2,0.00434552]
[1773447936751,0.58078526,2090.9,2090.2,0.47953952]
[1773447937458,0.23908,2091.0,2089.3,0.47566767]
[1773447937459,0.58078526,2090.5,2089.3,0.47566767]
[1773447937667,0.58078526,2090.5,2089.5,0.47566767]
[1773447938565,0.58645515,2090.5,2089.5,0.47997759]
[1773447938967,0.00566989,2090.5,2089.5,0.47997759]
[1773447939266,0.58078526,2090.9,2089.8,0.47473312]
[1773447939462,0.81986526,2091.1,2090.0,0.47473312]
[1773447940060,0.82458363,2091.1,2090.0,0.47473312]
[1773447940255,0.24379837,2091.1,2090.0,0.47473312]
[1773447940467,0.58078526,2091.0,2090.0,0.47473312]
[1773447961968,0.24379837,2091.1,2090.0,0.47473312]
[1773447961969,0.00471837,2091.1,2090.1,0.4591179]
[1773447962176,0.00471837,2091.1,2090.3,0.4591179]
[1773447962679,0.59397293,2091.1,2090.3,0.4591179]
[1773447964175,4.00441597,2091.7,2090.5,0.45994322]
[1773447964176,0.58925456,2091.6,2090.5,0.45994322]
[1773447964580,0.58925456,2091.6,2090.5,41.25994322]
[1773447964880,0.58925456,2091.6,2090.6,0.45994322]
[1773447965078,0.59335127,2091.6,2090.7,0.48003324]
[1773447971287,0.58925456,2091.5,2090.7,0.48003324]
[1773447972488,0.58925456,2091.5,2090.6,11.872]
[1773447972677,0.58925456,2091.5,2090.7,0.4671912]
[1773447973678,0.24310671,2091.6,2090.2,0.46731584]
[1773447973679,0.58925456,2091.3,2090.2,0.46731584]
[1773447973987,0.58925456,2091.1,2090.2,0.46731584]
[1773447976689,0.58925456,2090.9,2090.2,0.46731584]
[1773447985394,0.58925456,2090.9,2090.1,11.88]
[1773447985596,0.58925456,2090.9,2090.1,12.32784377]
[1773447986089,0.58925456,2090.9,2090.2,0.44986648]
[1773447988702,0.53415258,2090.8,2090.0,12.39921099]
[1773447989701,0.53415258,2090.8,2090.1,0.45154026]
[1773447990101,0.53415258,2090.6,2090.0,12.39953412]
[1773447990302,0.53415258,2090.6,2090.0,0.45253412]
[1773447995303,0.53415258,2090.6,2089.8,11.969]
[1773447995509,0.53415258,2090.4,2089.6,0.45365089]
[1773447998508,0.53415258,2090.4,2089.8,0.45365841]
[1773447999611,0.53415258,2090.4,2089.6,0.45389544]
[1773448004916,0.53415258,2090.2,2089.6,0.45389544]
[1773448005713,0.55345926,2090.0,2089.6,0.45389544]
[1773448005911,0.55830155,2090.0,2089.5,0.45648128]
[1773448009420,0.55830155,2090.0,2089.5,0.00430992]
[1773448012921,0.56974628,2089.8,2089.1,0.45661575]
[1773448014020,0.56974628,2089.8,2089.1,0.46276928]
[1773448014816,0.00484229,2090.0,2089.1,0.00615353]
[1773448014817,0.56974628,2089.4,2089.1,0.00615353]
[1773448015018,0.56974628,2089.4,2088.8,0.45652384]
[1773448015525,0.56974628,2089.2,2088.6,0.45582702]
[1773448015720,0.56974628,2089.2,2088.2,12.093]
[1773448015721,0.23923,2089.8,2088.8,0.45582702]
[1773448015926,0.56974628,2089.7,2089.1,0.45582702]
[1773448016617,0.56974628,2089.9,2089.3,0.4548004]
[1773448016818,0.56974628,2089.9,2088.8,0.00441176]
[1773448016819,0.56974628,2089.8,2089.1,0.4548004]
[1773448017018,0.56974628,2089.6,2088.9,0.45351422]
[1773448017223,0.56974628,2089.5,2088.8,0.00441176]
[1773448017428,0.56974628,2089.5,2088.8,0.45792598]
[1773448018523,0.56974628,2089.4,2088.8,0.45792598]
[1773448020928,0.80899628,2089.5,2088.9,0.52283345]
[1773448021627,0.56974628,2089.4,2088.9,0.52283345]
[1773448024830,0.56974628,2089.8,2089.1,0.48485891]
[1773448029037,0.56974628,2089.6,2089.1,0.48485891]
[1773448029932,5.95488948,2089.9,2088.9,0.47664633]
[1773448029933,0.56974628,2089.4,2088.9,0.47664633]
[1773448030239,0.56974628,2089.4,2088.8,0.4771926]
[1773448036646,0.56974628,2089.4,2088.8,0.00441176]
[1773448037949,0.56974628,2089.4,2088.8,0.42688688]
[1773448039648,0.23927,2089.3,2088.8,0.42688688]
[1773448039848,0.23927,2089.3,2088.8,0.00441176]
[1773448039849,0.56974628,2089.2,2088.8,0.00441176]
[1773448040447,0.56974628,2089.2,2088.6,12.4967222]
[1773448041451,0.56974628,2089.2,2088.6,0.00352416]
[1773448043452,0.79348695,2089.3,2088.7,0.43870368]
[1773448043647,0.55421695,2089.2,2088.7,0.43870368]
[1773448044243,0.23927,2089.3,2088.7,0.43870368]
[1773448044444,0.79344695,2089.7,2088.7,0.43870368]
[1773448044951,0.23923,2089.7,2088.7,0.43870368]
[1773448045152,0.00484229,2090.0,2089.0,0.43918672]
[1773448045351,0.55905924,2090.0,2089.1,0.43918672]
[1773448048150,0.55421695,2089.9,2089.1,0.43918672]
[1773448049855,0.55421695,2089.7,2088.8,0.3517917]
[1773448050064,0.55421695,2089.5,2088.8,0.3517917]
[1773448051357,0.55421695,2089.5,2088.6,0.35433393]
[1773448051558,0.55421695,2089.3,2088.6,0.35433393]
[1773448052256,0.55421695,2089.3,2088.6,0.00352416]
[1773448052858,0.55421695,2089.1,2088.6,0.00352416]
[1773448056856,0.55421695,2089.1,2088.6,0.35432828]
[1773448058964,0.55421695,2089.1,2088.6,0.00352416]
[1773448060162,0.55421695,2089.1,2088.3,0.35277403]
[1773448061165,0.55421695,2089.1,2088.3,0.35710829]
[1773448065266,9.96368836,2089.6,2088.3,0.35710829]
[1773448065267,0.55421695,2088.9,2088.3,0.35710829]
[1773448070170,0.55421695,2088.9,2088.3,0.00433426]
[1773448070367,0.55421695,2088.9,2087.8,40.8]
[1773448070368,0.54143661,2088.5,2087.8,12.6151936]
[1773448070668,0.54143661,2088.5,2087.9,0.3651936]
[1773448071470,0.54680817,2088.5,2087.9,0.36885837]
[1773448072670,0.54680817,2088.5,2087.9,0.00366477]
[1773448076073,0.00537156,2088.5,2088.0,0.36973749]
[1773448077469,0.16057592,2088.6,2088.0,0.36973749]
[1773448077670,0.55925684,2088.9,2088.0,0.36973749]
[1773448078468,0.56386328,2088.9,2088.0,0.36973749]
[1773448080772,0.00460644,2088.9,2088.1,0.57094033]
[1773448081370,0.56386328,2088.9,2088.1,0.57094033]
[1773448083669,0.55925684,2088.7,2088.1,0.57094033]
[1773448085476,0.00460644,2088.9,2087.9,12.33066477]
[1773448085477,0.56386328,2088.9,2088.4,0.57094033]
[1773448086475,0.00460644,2088.9,2088.4,0.57094033]
[1773448086873,0.56386328,2088.9,2088.4,0.57094033]
[1773448087074,0.00460644,2088.9,2088.4,0.57094033]
[1773448089674,5.95738965,2089.6,2088.4,0.57094033]
[1773448089874,0.55925684,2089.7,2089.0,0.57094033]
[1773448090174,13.75614181,2090.5,2089.0,0.57094033]
[1773448090175,0.55925684,2090.0,2089.0,0.57094033]
[1773448090378,0.55925684,2090.5,2089.3,0.57094033]
[1773448090769,0.55925684,2090.4,2089.3,0.57094033]
[1773448092774,0.55925684,2090.4,2089.5,0.57094033]
[1773448092975,0.55925684,2090.4,2089.5,0.57479603]
[1773448095473,0.00464384,2090.5,2089.5,0.57479603]
[1773448095874,0.00464384,2090.5,2089.7,0.57094033]
[1773448097882,0.56390068,2090.5,2089.7,0.57094033]
[1773448099882,0.00464384,2090.5,2089.7,0.57094033]
[1773448100183,0.56390068,2090.5,2089.7,0.57094033]
[1773448105685,0.56390068,2090.5,2089.8,0.53652694]
[1773448105887,0.56390068,2090.5,2090.0,0.53652694]
[1773448108882,0.56390068,2090.5,2089.9,12.396]
[1773448110488,0.56390068,2090.5,2090.0,0.53652694]
[1773448120196,0.58115511,2090.9,2090.5,0.53652694]
[1773448120597,0.58115511,2091.3,2090.5,0.53652694]
[1773448121196,0.58698918,2091.3,2090.5,0.53652694]
[1773448135900,0.59063764,2091.1,2090.4,12.489]
[1773448136103,0.59063764,2091.1,2090.3,0.57306169]